bitfinex-derivatives/quotes_ETHF0:USTF0_20250614
["timestamp","ask_amount","ask_price","bid_price","bid_amount"]
[1749934039919,4.27711654,2513.7,2513.6,25.49937]
[1749934040617,5.07245654,2513.7,2513.6,25.49937]
[1749934040918,4.27711654,2513.7,2513.6,25.49937]
[1749934042719,0.79534,2513.7,2513.6,24.704]
[1749934042915,0.6783,2513.8,2513.5,25.49738]
[1749934043115,1.06928217,2513.7,2513.6,0.79537]
[1749934043312,1.47362,2513.8,2513.7,0.79534]
[1749934043517,1.74754047,2513.8,2513.7,0.79534]
[1749934043817,2.54285047,2513.8,2513.7,0.79534]
[1749934044016,2.54285047,2513.8,2513.5,24.70797705]
[1749934044017,0.79537,2513.6,2513.5,0.80135705]
[1749934044219,1.86464468,2513.6,2513.5,0.00597705]
[1749934044419,6.86464468,2513.6,2513.5,0.00597705]
[1749934044620,8.84514468,2513.6,2513.5,0.00597705]
[1749934044826,0.79554,2513.1,2513.0,24.7]
[1749934045122,1.86505023,2513.1,2513.0,25.49556]
[1749934045317,1.86505023,2513.1,2512.7,0.6344]
[1749934045318,1.06951023,2513.1,2512.7,0.6344]
[1749934045524,0.79559,2512.9,2512.8,32.01761]
[1749934045723,0.79559,2512.9,2512.8,31.221]
[1749934045920,1.9805,2513.0,2512.7,24.699]
[1749934046125,0.669,2512.8,2512.7,24.699]
[1749934046422,0.669,2512.8,2512.7,25.49465]
[1749934046617,0.00597705,2513.1,2513.0,0.79556]
[1749934046822,0.00597705,2513.1,2513.0,32.01656]
[1749934047627,0.00597705,2513.1,2513.0,32.01756]
[1749934048826,0.80150705,2513.1,2513.0,32.01756]
[1749934049229,6.0769069,2513.1,2512.6,3.21377705]
[1749934049428,3.24459985,2513.0,2512.9,0.79559]
[1749934049731,1.07092985,2513.0,2512.9,0.79559]
[1749934050223,1.07092985,2513.0,2512.9,7.31859]
[1749934050422,1.07092985,2513.0,2512.9,8.60019]
[1749934051025,1.07092985,2513.0,2512.9,33.30019]
[1749934053033,1.07092985,2513.0,2512.9,33.96639]
[1749934054830,5.58501801,2513.7,2513.1,1.98875]
[1749934055128,1.06997022,2513.6,2513.5,0.7954]
[1749934055324,1.06997022,2513.6,2513.5,25.4954]
[1749934055729,3.2078,2513.7,2513.6,0.79537]
[1749934055932,4.27763505,2513.7,2513.6,0.79537]
[1749934056229,4.27763505,2513.7,2513.6,1.42297]
[1749934056422,3.2078,2513.7,2513.6,1.42297]
[1749934057019,0.79527,2514.0,2513.8,0.79529]
[1749934057329,0.79527,2514.0,2513.9,24.698]
[1749934057524,1.86490051,2514.0,2513.9,24.698]
[1749934060523,1.06963051,2514.0,2513.9,24.698]
[1749934060825,1.06963051,2514.0,2513.9,25.49327]
[1749934061229,3.8568,2514.1,2514.0,0.79524]
[1749934061523,4.92585758,2514.1,2514.0,0.79524]
[1749934062338,4.27685758,2514.1,2514.0,0.79524]
[1749934062531,3.2078,2514.1,2514.0,2.81934]
[1749934062731,0.79517,2514.3,2514.2,0.79518]
[1749934062925,1.8633835,2514.3,2514.2,25.48818]
[1749934063127,1.0682135,2514.3,2514.2,32.00218]
[1749934063326,3.2078,2514.4,2514.3,0.79515]
[1749934063921,3.2078,2514.4,2514.3,2.17565]
[1749934065837,0.79505,2514.6,2514.5,0.79508]
[1749934066037,0.79505,2514.6,2514.5,25.48408]
[1749934066538,0.79505,2514.6,2514.5,24.689]
[1749934067034,0.79505,2514.6,2514.3,2.17563]
[1749934067035,0.79512,2514.4,2514.3,0.79512]
[1749934067235,0.79512,2514.4,2514.3,31.99812]
[1749934067432,3.8829,2514.7,2514.1,3.8945]
[1749934067633,0.79518,2514.2,2514.1,3.2078]
[1749934067833,0.79518,2514.2,2514.1,34.4098]
[1749934068028,0.79518,2514.2,2514.1,9.7218]
[1749934068235,0.79518,2514.2,2514.1,31.201]
[1749934068641,0.79521,2514.1,2514.0,0.00597705]
[1749934068938,2.82731,2514.1,2514.0,24.69197705]
[1749934069140,2.82731,2514.1,2514.0,0.00597705]
[1749934069343,6.03511,2514.1,2514.0,0.00597705]
[1749934070935,5.2399,2514.1,2513.2,3.2078]
[1749934071131,3.2078,2513.4,2513.0,6.513]
[1749934071335,0.7955,2513.2,2513.1,24.685]
[1749934072038,0.79553,2513.1,2513.0,6.513]
[1749934072239,0.79553,2513.1,2513.0,31.99356]
[1749934072442,0.79551,2513.2,2513.1,0.79553]
[1749934072943,0.79551,2513.2,2513.1,24.685]
[1749934073346,0.79553,2513.1,2513.0,7.30854]
[1749934073541,0.79553,2513.1,2513.0,31.99354]
[1749934073845,0.79552,2513.2,2513.1,0.79553]
[1749934074044,0.79552,2513.2,2513.0,31.99353]
[1749934074244,0.79552,2513.2,2513.0,31.198]
[1749934074446,0.6451,2513.3,2513.0,31.99354]
[1749934074637,0.79553,2513.2,2513.0,31.99354]
[1749934074838,0.6451,2513.3,2513.0,31.99354]
[1749934074839,0.79553,2513.1,2513.0,31.99354]
[1749934075345,0.79553,2513.1,2513.0,25.48254]
[1749934075537,0.79553,2513.1,2513.0,24.687]
[1749934075739,0.79553,2513.1,2513.0,24.686]
[1749934076345,0.79553,2513.1,2513.0,25.48156]
[1749934076646,0.79553,2513.1,2513.0,24.686]
[1749934076839,0.80142705,2513.4,2513.3,0.79546]
[1749934077038,0.00597705,2513.4,2513.3,25.48246]
[1749934077833,0.00597705,2513.4,2513.3,31.99646]
[1749934080246,0.80140705,2513.4,2513.3,31.201]
[1749934080446,4.00920705,2513.4,2513.3,31.201]
[1749934081248,4.00920705,2513.4,2513.3,31.99646]
[1749934081458,3.21377705,2513.4,2513.3,31.99646]
[1749934083252,0.00597705,2513.4,2513.3,31.99646]
[1749934084850,3.2078,2514.2,2513.5,1.98848]
[1749934085052,1.73499597,2514.1,2513.7,0.79531]
[1749934085255,0.79532,2513.8,2513.7,0.79531]
[1749934085454,0.79532,2513.8,2513.7,25.48131]
[1749934085955,0.79531,2513.8,2513.7,24.684]
[1749934086948,1.9731,2514.1,2513.7,24.684]
[1749934087141,0.79531,2513.8,2513.7,25.47931]
[1749934087345,0.7953,2513.9,2513.8,0.79529]
[1749934087553,0.7953,2513.9,2513.8,25.47929]
[1749934088949,0.7953,2513.9,2513.8,24.684]
[1749934089148,0.7953,2513.9,2513.8,25.47931]
[1749934089749,0.7953,2513.9,2513.8,24.684]
[1749934090153,0.7953,2513.9,2513.8,25.47931]
[1749934090354,0.7953,2513.9,2513.8,24.684]
[1749934090655,0.7953,2513.9,2513.8,25.47931]
[1749934091859,0.7953,2513.9,2513.8,24.684]
[1749934092248,4.0031,2513.9,2513.8,25.47931]
[1749934092849,4.0031,2513.9,2513.8,24.684]
[1749934093854,4.0031,2513.9,2513.8,25.47931]
[1749934094054,4.0031,2513.9,2513.8,24.684]
[1749934094256,0.79531,2513.8,2513.7,0.79533]
[1749934094463,0.79531,2513.8,2513.7,25.47533]
[1749934095059,0.79531,2513.8,2513.7,0.79533]
[1749934095261,0.79531,2513.8,2513.7,25.47533]
[1749934096262,0.7953,2513.9,2513.8,0.79527]
[1749934096462,1.8736639,2513.9,2513.8,0.79527]
[1749934097361,0.79531,2513.8,2513.7,25.47532]
[1749934098565,1.87459923,2513.8,2513.7,25.47532]
[1749934098963,1.9882,2513.9,2513.5,1.2809]
[1749934099170,0.79546,2513.3,2513.2,7.30247]
[1749934099375,0.79546,2513.3,2513.2,31.97947]
[1749934099867,0.79546,2513.3,2513.2,6.507]
[1749934100063,1.87476984,2513.3,2513.2,31.184]
[1749934100260,5.08256984,2513.3,2513.2,31.184]
[1749934100766,5.08256984,2513.3,2513.2,6.507]
[1749934100969,6.38456984,2513.3,2513.2,31.184]
[1749934102366,0.79551,2513.2,2513.0,0.692]
[1749934102570,0.79551,2513.2,2513.1,25.47351]
[1749934102871,1.87455241,2513.2,2513.1,25.47351]
[1749934103660,0.79542,2513.5,2513.4,0.79543]
[1749934103867,1.87448207,2513.5,2513.4,25.47243]
[1749934104468,1.87448207,2513.5,2513.4,24.677]
[1749934105864,1.87448207,2513.5,2513.4,25.47243]
[1749934109266,1.87448207,2513.5,2513.4,24.677]
[1749934109665,1.87448207,2513.5,2513.4,25.47243]
[1749934110978,1.87448207,2513.5,2513.4,24.677]
[1749934111379,1.98859,2513.4,2513.1,1.3898]
[1749934111577,0.7955,2513.2,2513.1,24.675]
[1749934111978,1.8752957,2513.2,2513.1,24.675]
[1749934113579,0.79556,2513.0,2512.9,31.18897705]
[1749934113780,1.8753557,2513.0,2512.9,31.18897705]
[1749934114685,6.21971801,2513.6,2512.9,38.17795705]
[1749934114874,1.07909476,2513.5,2513.4,0.7954]
[1749934115184,0.79531,2513.8,2513.7,0.79531]
[1749934115488,1.07901743,2513.8,2513.7,25.46931]
[1749934116282,1.87432743,2513.8,2513.7,25.46931]
[1749934117376,3.2078,2514.2,2513.7,24.674]
[1749934117580,0.79528,2513.9,2513.8,2.09927]
[1749934117774,1.87429888,2513.9,2513.8,2.09927]
[1749934118586,1.87429888,2513.9,2513.8,1.304]
[1749934118887,0.79537,2513.6,2513.5,7.9561]
[1749934119086,0.79537,2513.6,2513.5,32.6271]
[1749934119681,0.79537,2513.6,2513.5,32.6261]
[1749934120384,0.79537,2513.6,2513.5,31.8307]
[1749934121488,0.79537,2513.6,2513.5,32.6261]
[1749934122087,0.7954,2513.5,2513.4,4.00323]
[1749934122285,0.7954,2513.5,2513.4,35.17323]
[1749934122583,0.79537,2513.7,2513.6,0.79535]
[1749934122788,0.79531,2513.8,2513.7,0.79534]
[1749934122978,1.87444934,2513.8,2513.7,0.79534]
[1749934123184,1.07913934,2513.8,2513.7,2.06674]
[1749934123879,1.07913934,2513.8,2513.7,2.72204]
[1749934127384,1.07913934,2513.8,2513.7,3.36384]
[1749934128096,0.7954,2513.5,2513.4,3.2078]
[1749934128401,0.7954,2513.5,2513.4,34.3738]
[1749934128889,0.79539,2513.6,2513.5,0.79537]
[1749934129287,0.79539,2513.6,2513.5,2.14297]
[1749934129490,0.7954,2513.5,2513.4,6.5]
[1749934129688,0.7954,2513.5,2513.4,31.96043]
[1749934130885,0.7954,2513.5,2513.4,6.5]
[1749934131286,0.7954,2513.5,2513.4,31.95943]
[1749934131482,1.87492189,2513.5,2513.4,31.95943]
[1749934131682,1.87492189,2513.5,2513.4,7.29543]
[1749934131894,1.87492189,2513.5,2513.4,31.95943]
[1749934132294,0.79546,2513.3,2513.2,0.6418]
[1749934132486,0.7955,2513.2,2513.1,4.00331]
[1749934132691,0.7955,2513.2,2513.1,35.16731]
[1749934133007,0.79549,2513.3,2513.2,0.79549]
[1749934133799,0.7955,2513.2,2513.1,35.1673]
[1749934136084,0.7955,2513.2,2513.1,9.7078]
[1749934136296,0.7955,2513.2,2513.1,34.3708]
[1749934136590,0.7955,2513.2,2513.1,31.163]
[1749934137189,0.79553,2513.1,2513.0,1.45216]
[1749934137390,0.79553,2513.1,2513.0,31.8206]
[1749934137793,0.79553,2513.1,2513.0,7.1576]
[1749934138098,0.79553,2513.1,2513.0,32.61616]
[1749934138799,0.79553,2513.1,2513.0,7.95316]
[1749934139098,0.79553,2513.1,2513.0,32.61616]
[1749934139300,0.79551,2513.2,2513.1,0.7955]
[1749934139900,3.2078,2513.6,2513.4,0.7954]
[1749934140100,4.67907,2513.6,2513.5,24.663]
[1749934140293,0.79543,2513.4,2513.3,0.79544]
[1749934140488,0.79549,2513.3,2513.0,0.6566]
[1749934140698,0.79552,2513.2,2513.1,31.9585]
[1749934140897,1.47142,2513.2,2513.1,31.9585]
[1749934143302,0.79555,2513.1,2513.0,7.29653]
[1749934143602,0.79555,2513.1,2513.0,31.95753]
[1749934144699,1.47142,2513.2,2513.1,0.79553]
[1749934144997,2.55181355,2513.2,2513.1,0.79553]
[1749934146005,3.2078,2513.6,2513.0,33.15084]
[1749934146206,0.06809268,2513.2,2513.1,2.06363]
[1749934146509,0.06809268,2513.2,2513.1,26.72363]
[1749934149207,0.86359268,2513.2,2513.1,26.72363]
[1749934149596,0.79556,2513.1,2513.0,0.79554]
[1749934149800,0.79553,2513.1,2513.0,31.152]
[1749934150002,0.79556,2513.0,2512.9,1.44343705]
[1749934150202,0.79556,2513.0,2512.9,32.59543705]
[1749934150404,0.79556,2513.0,2512.9,7.93643705]
[1749934150609,0.79556,2513.0,2512.9,32.59543705]
[1749934153811,1.48895,2513.1,2513.0,0.79556]
[1749934154610,2.56980933,2513.1,2513.0,0.79556]
[1749934154911,1.48895,2513.1,2513.0,0.79556]
[1749934155211,2.56980393,2513.1,2513.0,0.79556]
[1749934160816,0.79556,2513.0,2512.9,7.93644705]
[1749934161018,1.87641393,2513.0,2512.9,31.15297705]
[1749934161215,1.87641393,2513.0,2512.9,31.94856705]
[1749934161714,1.87641393,2513.0,2512.9,31.15297705]
[1749934162717,1.87641393,2513.0,2512.9,31.94856705]
[1749934162915,1.87641393,2513.0,2512.9,31.15297705]
[1749934163213,1.87641393,2513.0,2512.9,24.65897705]
[1749934165217,1.87641393,2513.0,2512.9,25.45456705]
[1749934166015,1.08085393,2513.0,2512.9,25.45456705]
[1749934166216,1.08085393,2513.0,2512.9,26.80196705]
[1749934166619,1.43698,2513.6,2513.5,0.7954]
[1749934166817,2.51893402,2513.6,2513.5,25.4474]
[1749934167016,1.72355402,2513.6,2513.5,25.4474]
[1749934167318,2.51892402,2513.6,2513.5,25.4474]
[1749934167512,2.51892402,2513.6,2513.5,24.652]
[1749934169614,1.98851,2513.5,2512.7,6.37387436]
[1749934169818,0.79556,2513.1,2513.0,25.44654]
[1749934170016,1.87751402,2513.1,2513.0,25.44654]
[1749934170519,1.9456067,2513.1,2513.0,25.44654]
[1749934170919,1.1500467,2513.1,2513.0,25.44654]
[1749934171312,0.06809268,2513.1,2513.0,26.79874]
[1749934171511,0.86364268,2513.1,2513.0,31.142]
[1749934171917,1.94542888,2513.1,2513.0,31.142]
[1749934172117,1.14987888,2513.1,2513.0,31.93756]
[1749934172319,1.14987888,2513.1,2513.0,33.28976]
[1749934172823,1.14987888,2513.1,2513.0,31.93756]
[1749934173224,1.94541888,2513.1,2513.0,31.142]
[1749934173723,1.94541888,2513.1,2513.0,31.93756]
[1749934175123,1.94541888,2513.1,2513.0,31.142]
[1749934175523,1.94541888,2513.1,2513.0,31.93756]
[1749934177224,1.94541888,2513.1,2513.0,7.28856]
[1749934177426,1.94541888,2513.1,2513.0,31.93456]
[1749934178420,1.94541888,2513.1,2513.0,31.139]
[1749934178822,1.94541888,2513.1,2513.0,31.93456]
[1749934180625,1.94541888,2513.1,2513.0,31.139]
[1749934181628,1.94541888,2513.1,2513.0,31.93456]
[1749934181820,1.94541888,2513.1,2513.0,31.139]
[1749934183230,1.94541888,2513.1,2513.0,31.93456]
[1749934183823,1.94541888,2513.1,2513.0,31.139]
[1749934184518,1.94541888,2513.1,2513.0,31.93456]
[1749934188029,1.94541888,2513.1,2513.0,31.139]
[1749934188427,0.79556,2513.0,2512.9,6.48997705]
[1749934188628,1.8773462,2513.0,2512.9,31.13197705]
[1749934189333,1.8773462,2513.0,2512.9,31.92756705]
[1749934192238,1.0817862,2513.0,2512.9,31.92756705]
[1749934192425,1.0817862,2513.0,2512.9,33.26186705]
[1749934192937,1.8773462,2513.0,2512.9,33.26186705]
[1749934196136,1.8773462,2513.0,2512.9,0.00597705]
[1749934196340,6.4012462,2513.0,2512.9,0.00597705]
[1749934196641,0.79569,2512.6,2512.5,7.1277]
[1749934196840,0.79569,2512.6,2512.5,31.7647]
[1749934197728,1.88442313,2512.6,2512.5,31.7647]
[1749934197934,1.88442313,2512.6,2512.5,7.1277]
[1749934198134,1.88442313,2512.6,2512.5,6.484]
[1749934198338,5.09222313,2512.6,2512.5,6.484]
[1749934198540,5.09222313,2512.6,2512.5,31.12]
[1749934198740,0.79572,2512.5,2512.4,0.79574]
[1749934198942,2.53695313,2512.5,2512.4,25.43174]
[1749934199241,4.00351,2512.6,2512.5,0.79572]
[1749934199538,0.00597705,2512.8,2512.7,0.79565]
[1749934199736,1.09430999,2512.8,2512.7,25.43165]
[1749934199938,0.00597705,2512.8,2512.7,25.43165]
[1749934200135,0.00597705,2512.8,2512.7,26.68665]
[1749934200845,0.80159705,2512.8,2512.7,25.43165]
[1749934201147,0.00597705,2512.8,2512.7,25.43165]
[1749934201334,0.80159705,2512.8,2512.7,25.43165]
[1749934201639,0.00597705,2512.8,2512.7,25.43165]
[1749934201831,0.00597705,2512.8,2512.7,26.68665]
[1749934204837,0.80159705,2512.8,2512.7,26.68665]
[1749934205946,0.07406973,2512.8,2512.7,24.633]
[1749934206243,0.86970973,2512.8,2512.7,25.42865]
[1749934208044,0.07406973,2512.8,2512.7,25.42865]
[1749934208239,0.07406973,2512.8,2512.7,26.70175]
[1749934209847,0.7955,2513.2,2513.1,0.7955]
[1749934210046,1.88459287,2513.2,2513.1,24.631]
[1749934210540,1.88459287,2513.2,2513.1,26.05323]
[1749934212548,1.88459287,2513.2,2513.1,25.2577]
[1749934213643,1.88459287,2513.2,2513.1,24.631]
[1749934214045,3.83939287,2513.2,2513.1,24.631]
[1749934214245,2.53839287,2513.2,2513.1,24.631]
[1749934214549,2.53839287,2513.2,2513.1,25.42653]
[1749934214744,2.53839287,2513.2,2513.1,24.631]
[1749934216048,2.53839287,2513.2,2513.1,25.42653]
[1749934216247,1.88459287,2513.2,2513.1,26.08443]
[1749934218647,1.08909287,2513.2,2513.1,26.08443]
[1749934218854,1.08909287,2513.2,2513.1,27.47293]
[1749934219052,1.08909287,2513.2,2513.1,28.14623]
[1749934219255,1.15718555,2513.2,2513.1,28.14623]
[1749934219849,4.66938,2513.6,2513.5,0.7954]
[1749934220046,5.75788906,2513.6,2513.5,24.624]
[1749934220658,0.7955,2513.2,2513.1,2.12671]
[1749934220846,0.7955,2513.2,2513.1,33.22571]
[1749934221249,0.06809268,2513.2,2513.1,33.22571]
[1749934222249,0.06809268,2513.2,2513.1,34.51521]
[1749934223048,3.2078,2513.9,2513.1,34.51521]
[1749934223049,0.6716,2513.9,2513.8,0.79531]
[1749934223250,1.08781107,2513.9,2513.8,25.41631]
[1749934223465,1.88308107,2513.9,2513.8,25.41631]
[1749934223759,1.88308107,2513.9,2513.8,26.07301]
[1749934224159,1.08781107,2513.9,2513.8,26.07301]
[1749934224366,1.88308107,2513.9,2513.8,25.2777]
[1749934225174,1.08781107,2513.9,2513.8,26.07301]
[1749934225374,1.08781107,2513.9,2513.8,27.40891]
[1749934225574,1.88308107,2513.9,2513.8,26.6136]
[1749934225877,1.88308107,2513.9,2513.8,27.40891]
[1749934226666,1.08781107,2513.9,2513.8,27.40891]
[1749934226970,0.79527,2513.9,2513.8,27.40891]
[1749934227163,0.79527,2513.9,2513.8,26.6136]
[1749934227370,0.79534,2513.7,2513.6,0.00597705]
[1749934227571,0.79534,2513.7,2513.6,25.41734705]
[1749934227873,0.6716,2514.1,2513.6,24.62197705]
[1749934228073,0.79532,2513.8,2513.7,0.6573]
[1749934228671,0.79532,2513.8,2513.7,1.45264]
[1749934229375,0.6716,2514.1,2513.7,1.45261]
[1749934229569,0.79527,2513.9,2513.8,24.615]
[1749934229766,0.79527,2513.9,2513.8,25.41031]
[1749934230473,1.9967,2514.1,2513.6,0.66907705]
[1749934230668,0.79531,2513.8,2513.7,24.614]
[1749934231477,0.79534,2513.7,2513.6,0.00597705]
[1749934231678,2.54295932,2513.7,2513.6,0.00597705]
[1749934232377,3.86805932,2513.7,2513.6,0.00597705]
[1749934235775,2.54295932,2513.7,2513.6,0.80134705]
[1749934236674,2.54295932,2513.7,2513.6,0.00597705]
[1749934237080,2.54295932,2513.7,2513.6,0.66407705]
[1749934237982,2.54295932,2513.7,2513.6,1.45944705]
[1749934238181,2.54295932,2513.7,2513.6,0.66407705]
[1749934238980,2.54295932,2513.7,2513.6,0.00597705]
[1749934240481,2.54295932,2513.7,2513.6,0.80134705]
[1749934240980,2.54295932,2513.7,2513.6,0.00597705]
[1749934241371,2.54295932,2513.7,2513.6,0.80134705]
[1749934241779,1.08521932,2513.7,2513.6,0.80134705]
[1749934242184,1.08521932,2513.7,2513.6,7.26434705]
[1749934242589,1.88055932,2513.7,2513.6,6.46897705]
[1749934243277,1.88055932,2513.7,2513.6,7.26434705]
[1749934244284,1.88055932,2513.7,2513.6,6.46897705]
[1749934244583,1.88055932,2513.7,2513.6,7.26434705]
[1749934244984,1.88055932,2513.7,2513.6,6.46897705]
[1749934245988,1.88055932,2513.7,2513.6,0.00597705]
[1749934246181,2.53335932,2513.7,2513.6,0.00597705]
[1749934246383,3.89175932,2513.7,2513.6,0.00597705]
[1749934246582,3.89175932,2513.7,2513.2,6.463]
[1749934246583,0.79546,2513.3,2513.2,6.463]
[1749934246784,0.79553,2513.1,2513.0,7.0937]
[1749934246984,0.79553,2513.1,2513.0,31.6967]
[1749934247486,0.79553,2513.1,2513.0,32.49226]
[1749934248086,0.79553,2513.1,2513.0,31.6967]
[1749934248276,0.79559,2512.9,2512.8,3.88727705]
[1749934248480,0.79559,2512.9,2512.8,0.00597705]
[1749934248683,1.88332591,2512.9,2512.8,0.00597705]
[1749934248990,3.18542591,2512.9,2512.8,0.00597705]
[1749934250185,1.88332591,2512.9,2512.8,0.00597705]
[1749934250481,1.08773591,2512.9,2512.8,0.80159705]
[1749934250690,1.42822,2513.2,2512.8,5.84077705]
[1749934250887,1.08639439,2513.1,2513.0,0.79556]
[1749934251084,1.42822,2513.2,2513.1,0.79553]
[1749934251286,1.71902957,2513.2,2513.1,0.79553]
[1749934251590,0.80146705,2513.3,2513.2,0.7955]
[1749934251789,1.88778235,2513.3,2513.2,0.7955]
[1749934252182,1.09229235,2513.3,2513.2,0.7955]
[1749934252390,1.09229235,2513.3,2513.2,1.4744]
[1749934252590,1.09229235,2513.3,2513.2,2.8102]
[1749934252591,0.00597705,2513.3,2513.2,2.8102]
[1749934253291,0.80143705,2513.3,2513.2,2.8102]
[1749934254391,0.80143705,2513.3,2513.2,2.0147]
[1749934254693,0.80143705,2513.3,2513.2,0.6789]
[1749934255494,0.80143705,2513.3,2513.2,1.4744]
[1749934256594,0.80143705,2513.3,2513.2,0.6789]
[1749934257684,1.88865861,2513.3,2513.2,0.6789]
[1749934258200,1.88865861,2513.3,2513.2,1.4744]
[1749934258593,1.09319861,2513.3,2513.2,1.4744]
[1749934258791,1.09319861,2513.3,2513.2,2.8443]
[1749934258992,0.00597705,2513.3,2513.2,2.8443]
[1749934259593,0.00597705,2513.3,2513.2,11.0521]
[1749934259793,0.06809268,2513.7,2513.6,0.79537]
[1749934259994,1.15550091,2513.7,2513.6,25.39337]
[1749934260592,1.15550091,2513.7,2513.5,24.598]
[1749934260791,0.79537,2513.6,2513.5,25.39339]
[1749934261392,0.79537,2513.6,2513.5,24.598]
[1749934261596,1.48927,2513.6,2513.5,24.598]
[1749934261796,1.48927,2513.6,2513.5,25.3934]
[1749934262198,1.48927,2513.6,2513.5,24.598]
[1749934262499,0.06809268,2513.7,2513.6,0.79537]
[1749934262697,1.15541022,2513.7,2513.6,0.79537]
[1749934262898,1.15541022,2513.7,2513.5,24.598]
[1749934263098,0.79537,2513.6,2513.5,24.598]
[1749934263298,0.79537,2513.6,2513.5,25.3934]
[1749934264100,0.79537,2513.6,2513.5,24.598]
[1749934265399,0.79537,2513.6,2513.5,25.3934]
[1749934265793,0.86346268,2513.6,2513.5,25.3934]
[1749934266300,0.7954,2513.5,2513.4,0.79541]
[1749934266500,0.7954,2513.5,2513.4,25.38841]
[1749934266501,1.4241,2513.5,2513.4,25.38841]
[1749934266800,0.6287,2513.5,2513.4,25.38841]
[1749934267203,1.4241,2513.5,2513.4,25.38841]
[1749934268601,0.6287,2513.5,2513.4,25.38841]
[1749934269205,1.4241,2513.5,2513.4,25.38841]
[1749934270299,1.4241,2513.5,2513.4,24.593]
[1749934271498,1.4241,2513.5,2513.2,1.3243]
[1749934271499,0.79556,2513.0,2512.9,3.2078]
[1749934271701,0.79556,2513.0,2512.9,27.7968]
[1749934272202,1.9518,2513.4,2513.1,0.7955]
[1749934272203,0.79552,2513.2,2513.1,0.7955]
[1749934272398,0.79556,2513.1,2512.9,29.1725]
[1749934272706,0.79559,2512.9,2512.8,0.00597705]
[1749934272900,1.88226553,2512.9,2512.8,24.59397705]
[1749934273095,3.92266553,2512.9,2512.8,24.59397705]
[1749934273297,0.79575,2512.4,2512.3,0.6592]
[1749934273498,0.79575,2512.4,2512.3,31.6982]
[1749934274093,0.79575,2512.4,2512.3,7.1112]
[1749934274310,0.79575,2512.4,2512.3,31.6982]
[1749934274603,0.79575,2512.4,2512.3,32.49398]
[1749934275402,0.79575,2512.4,2512.3,31.6982]
[1749934275603,0.79575,2512.4,2512.3,32.49398]
[1749934276206,0.79575,2512.4,2512.3,6.452]
[1749934276506,0.79575,2512.4,2512.3,31.042]
[1749934276998,0.79581,2512.2,2512.1,0.80181705]
[1749934277201,0.79581,2512.2,2512.1,31.04697705]
[1749934277408,0.79581,2512.2,2512.1,6.45897705]
[1749934277601,0.79581,2512.2,2512.1,31.04697705]
[1749934278501,0.79581,2512.2,2512.1,24.59597705]
[1749934279702,0.79594,2511.8,2511.7,0.79596]
[1749934280004,0.79597,2511.7,2511.6,4.00377]
[1749934280211,0.79597,2511.7,2511.6,3.2078]
[1749934280596,0.79597,2511.7,2511.6,27.7968]
[1749934281003,0.796,2511.6,2511.5,31.6875]
[1749934281407,0.796,2511.6,2511.5,6.453]
[1749934281607,0.79603,2511.5,2511.4,0.00597705]
[1749934282310,4.00383,2511.5,2511.4,0.00597705]
[1749934282498,4.67063,2511.5,2511.4,7.05e-06]
[1749934283105,17.20724508,2511.5,2511.4,7.05e-06]
[1749934283607,17.41763,2511.5,2511.4,7.05e-06]
[1749934285113,18.4982386,2511.5,2511.4,7.05e-06]
[1749934286905,17.41763,2511.5,2511.4,7.05e-06]
[1749934287112,0.79632,2510.6,2510.5,3.2078]
[1749934287909,11.65568,2510.6,2509.9,1.47132]
[1749934288100,3.2078,2510.3,2510.0,0.00597705]
[1749934288406,0.79648,2510.1,2510.0,0.00597705]
[1749934288613,0.79647,2510.2,2510.1,0.79647]
[1749934288911,3.2078,2510.3,2510.2,0.79645]
[1749934289313,0.79642,2510.3,2510.0,1.31507705]
[1749934289510,0.79642,2510.3,2510.2,0.79643]
[1749934290016,0.79645,2510.2,2510.1,6.457]
[1749934290309,0.79648,2510.1,2510.0,0.00597705]
[1749934292010,0.79647,2510.2,2510.0,0.00597705]
[1749934292205,0.79646,2510.2,2510.1,0.79647]
[1749934292410,3.9032,2510.3,2510.0,2.16125705]
[1749934292614,0.79645,2510.2,2510.0,2.16125705]
[1749934292815,0.79648,2510.1,2510.0,0.80245705]
[1749934293018,0.79648,2510.1,2510.0,0.00597705]
[1749934293213,0.79648,2510.1,2510.0,0.80248705]
[1749934293611,3.9032,2510.3,2510.1,0.79645]
[1749934293612,0.79645,2510.2,2510.1,0.79645]
[1749934294011,3.9032,2510.3,2510.2,0.79645]
[1749934294012,3.2078,2510.3,2510.2,0.79645]
[1749934295418,4.00421,2510.3,2510.2,0.79645]
[1749934296916,0.79648,2510.1,2510.0,1.34707705]
[1749934297423,0.86457268,2510.1,2510.0,1.34707705]
[1749934298222,0.86457268,2510.1,2510.0,2.14358705]
[1749934298822,0.86457268,2510.1,2510.0,1.34707705]
[1749934299119,0.06809268,2510.1,2510.0,2.14358705]
[1749934300111,0.86457268,2510.1,2510.0,0.00597705]
[1749934300319,2.24317268,2510.1,2510.0,0.00597705]
[1749934301024,0.86457268,2510.1,2510.0,0.80248705]
[1749934301711,0.86457268,2510.1,2510.0,0.00597705]
[1749934306027,1.94798562,2510.1,2510.0,0.00597705]
[1749934306226,2.61908562,2510.1,2510.0,0.00597705]
[1749934311135,4.67038562,2510.1,2510.0,0.00597705]
[1749934311527,3.30658562,2510.1,2510.0,0.00597705]
[1749934311835,5.68380363,2510.1,2510.0,0.00597705]
[1749934312533,5.68893601,2510.1,2510.0,0.00597705]
[1749934314627,3.311718,2510.1,2510.0,0.00597705]
[1749934315638,0.79657,2509.8,2509.7,0.6649]
[1749934315840,1.88511532,2509.8,2509.7,0.6649]
[1749934316435,3.08000532,2509.8,2509.4,1.988]
[1749934316635,0.7967,2509.4,2509.3,7.15097705]
[1749934316834,1.88524532,2509.4,2509.3,0.69897705]
[1749934317736,1.88524532,2509.4,2509.3,0.00597705]
[1749934318242,4.26873021,2509.4,2509.3,0.00597705]